fUSD/lending_fUSD_20241207
["ID","MTS","AMOUNT","RATE_DAILY","PERIOD"]
[344513100,1733529614064,537.63,0.00016658,30]
[344513104,1733529870900,-250.0,7.405e-05,2]
[344513105,1733529870923,-200.0,7.678e-05,2]
[344513106,1733529870947,-200.0,7.681e-05,2]
[344513107,1733529870974,-200.0,7.683e-05,2]
[344513108,1733529870998,-200.0,7.684e-05,2]
[344513109,1733529871023,-200.0,7.691e-05,2]
[344513110,1733529871047,-200.0,7.693e-05,2]
[344513111,1733529871074,-200.0,7.694e-05,2]
[344513112,1733529871099,-200.0,7.694e-05,2]
[344513113,1733529871123,-200.0,7.696e-05,2]
[344513114,1733529871147,-618.241,7.81e-05,2]
[344513115,1733529871179,-150.0,7.983e-05,2]
[344513116,1733529871204,-250.0,7.998e-05,2]
[344513117,1733529871227,-300.0,8.118e-05,2]
[344513118,1733529871248,-6631.759,8.119e-05,2]
[344513119,1733529874031,-10000.0,8.119e-05,2]
[344513120,1733529875649,-10000.0,8.119e-05,2]
[344513121,1733529877140,-10000.0,8.119e-05,2]
[344513122,1733529878443,-3202.241,8.119e-05,2]
[344513123,1733529878476,-498.21,8.119e-05,2]
[344513124,1733529878503,-506.39,8.119e-05,2]
[344513125,1733529878529,-2500.0,8.119e-05,2]
[344513126,1733529878559,-307.01,8.119e-05,2]
[344513127,1733529878595,-310.252,8.119e-05,2]
[344513128,1733529878628,-2675.897,8.119e-05,2]
[344513129,1733529880678,-1175.461,8.119e-05,2]
[344513130,1733529880701,-503.42,8.119e-05,2]
[344513131,1733529880725,-508.59,8.119e-05,2]
[344513132,1733529880749,-497.0,8.119e-05,2]
[344513133,1733529880772,-492.03,8.119e-05,2]
[344513134,1733529880795,-508.5,8.119e-05,2]
[344513135,1733529889319,2500.0,8.119e-05,2]
[344513136,1733529909010,-490.44,8.2e-05,2]
[344513137,1733529909033,-1000.0,8.2e-05,2]
[344513138,1733529909056,-300.0,8.206e-05,2]
[344513139,1733529909082,-2024.559,8.207e-05,2]
[344513140,1733529919686,-2260.9122698,8.207e-05,2]
[344513141,1733529919709,-7739.0877302,8.207e-05,2]
[344513142,1733529921046,-2249.4039014,8.207e-05,2]
[344513143,1733529921068,-4417.1524166,8.207e-05,2]
[344513144,1733529921090,-651.5899096,8.207e-05,2]
[344513145,1733529921115,-1123.8694417,8.207e-05,2]
[344513146,1733529932872,553.67,7.895e-05,2]
[344513147,1733529952975,150.0,7.898e-05,2]
[344513148,1733529955757,250.0,7.898e-05,2]
[344513149,1733529964248,-496.27,8.207e-05,2]
[344513150,1733529964272,-108.0443307,8.208e-05,2]
[344513151,1733529974126,-1896.2066853,8.207e-05,2]
[344513152,1733529974156,-508.6,8.208e-05,2]
[344513153,1733529974182,-393.3256693,8.208e-05,2]
[344513154,1733529974204,-150.0,8.21e-05,2]
[344513155,1733529974227,-2400.1160147,8.213e-05,2]
[344513156,1733529974250,-729.2,8.218e-05,2]
[344513157,1733529974273,-663.0,8.219e-05,2]
[344513158,1733529974298,-497.05,8.219e-05,2]
[344513159,1733529974323,-2762.5016307,8.219e-05,2]
[344513160,1733529976142,-10000.0,8.219e-05,2]
[344513161,1733529977063,-10000.0,8.219e-05,2]
[344513162,1733529978049,-10000.0,8.219e-05,2]
[344513163,1733529978927,-10000.0,8.219e-05,2]
[344513164,1733529980503,-10000.0,8.219e-05,2]
[344513165,1733529981504,-10000.0,8.219e-05,2]
[344513166,1733529982593,-10000.0,8.219e-05,2]
[344513167,1733529983641,-10000.0,8.219e-05,2]
[344513168,1733529984911,-10000.0,8.219e-05,2]
[344513169,1733529985767,-600.0,8.219e-05,2]
[344513170,1733529985791,-9400.0,8.219e-05,2]
[344513171,1733529986952,-10000.0,8.219e-05,2]
[344513172,1733529988089,-10000.0,8.219e-05,2]
[344513173,1733529989150,-10000.0,8.219e-05,2]
[344513174,1733529990420,-10000.0,8.219e-05,2]
[344513175,1733529991237,-10000.0,8.219e-05,2]
[344513176,1733529992226,-264.446,8.119e-05,2]
[344513177,1733529992249,-9735.554,8.219e-05,2]
[344513178,1733529993973,-10000.0,8.219e-05,2]
[344513179,1733529994669,-2500.0,8.119e-05,2]
[344513180,1733529994694,-7500.0,8.219e-05,2]
[344513181,1733529995809,-10000.0,8.219e-05,2]
[344513182,1733530003507,-542.0,8.219e-05,2]
[344513183,1733530003532,-495.11,8.219e-05,2]
[344513184,1733530003558,-8962.89,8.219e-05,2]
[344513185,1733530017223,12789.1,0.0002,120]
[344513186,1733530092600,-950.94,7.945e-05,2]
[344513187,1733530092623,-508.11,7.945e-05,2]
[344513188,1733530092645,-4780.4090156,8.213e-05,2]
[344513189,1733530092666,-2114.0124069,8.213e-05,2]
[344513190,1733530114242,464.5285775,8.119e-05,2]
[344513216,1733530232419,-2035.4714225,8.119e-05,2]
[344513217,1733530232429,-436.89022227,8.119e-05,2]
[344513218,1733530232440,-70.03977773,8.119e-05,2]
[344513219,1733530232449,-506.11,8.119e-05,2]
[344513220,1733530232458,-176.61816213,8.119e-05,2]
[344513224,1733530232509,-328.00183787,8.119e-05,2]
[344513226,1733530232518,-223.51541827,8.119e-05,2]
[344513229,1733530232537,-275.73458173,8.119e-05,2]
[344513230,1733530232546,-508.51,8.119e-05,2]
[344513233,1733530232556,-1329.0,8.2e-05,2]
[344513235,1733530232566,-542.1750462,8.207e-05,2]
[344513236,1733530232575,-210.11576332,8.213e-05,2]
[344513239,1733530232586,-1250.40530938,8.213e-05,2]
[344513240,1733530232596,-505.14,8.219e-05,2]
[344513242,1733530232606,-509.4,8.219e-05,2]
[344513243,1733530232616,-17397.45556742,8.219e-05,2]
[344513244,1733530232647,-1718.9,8.219e-05,2]
[344513248,1733530237736,-451.15504761,8.219e-05,2]
[344513249,1733530237749,-1027.90064709,8.219e-05,2]
[344513250,1733530237794,-311.184893,8.219e-05,2]
[344513251,1733530237805,-258.541045,8.219e-05,2]
[344513252,1733530237846,-9551.96517079,8.219e-05,2]
[344513253,1733530237857,-1572.82199258,8.219e-05,2]
[344513254,1733530237956,-1069.37220663,8.219e-05,2]
[344513255,1733530238011,-833.69583873,8.219e-05,2]
[344513256,1733530238022,-769.96443153,8.219e-05,2]
[344513257,1733530238035,-292.04521374,8.219e-05,2]
[344513258,1733530238071,-1150.8,8.219e-05,2]
[344513268,1733530240284,-1720.39690758,8.219e-05,2]
[344513269,1733530240297,-3999.64712997,8.219e-05,2]
[344513270,1733530240309,-49451.45165329,8.219e-05,2]
[344513271,1733530240344,-1001.46407188,8.219e-05,2]
[344513272,1733530240392,-261.35939162,8.219e-05,2]
[344513273,1733530240403,-500.1473936,8.219e-05,2]
[344513274,1733530241336,-435.57,8.219e-05,2]
[344513275,1733530241350,-372.80077324,8.219e-05,2]
[344513276,1733530241365,-5723.9,8.219e-05,2]
[344513277,1733530241409,-1528.69867871,8.219e-05,2]
[344513278,1733530241424,-2425.59100699,8.219e-05,2]
[344513279,1733530241439,-534.1,8.219e-05,2]
[344513287,1733530243532,-1454.42621191,8.219e-05,2]
[344513290,1733530243568,-699.5899999,8.219e-05,2]
[344513292,1733530243580,-1192.9975616,8.219e-05,2]
[344513293,1733530243591,-592.48708101,8.219e-05,2]
[344513294,1733530243619,-1217.19431396,8.219e-05,2]
[344513295,1733530243630,-405.989586,8.219e-05,2]
[344513297,1733530243641,-250.48040969,8.219e-05,2]
[344513300,1733530243672,-2990.07,8.219e-05,2]
[344513301,1733530243683,-2719.56817625,8.219e-05,2]
[344513302,1733530243698,-5826.09397251,8.219e-05,2]
[344513303,1733530243717,-59440.0,8.219e-05,2]
[344513304,1733530243740,-411.94805953,8.219e-05,2]
[344513305,1733530243752,-1202.91687716,8.219e-05,2]
[344513306,1733530243763,-1238.24,8.219e-05,2]
[344513307,1733530243774,-2493.1,8.219e-05,2]
[344513308,1733530243791,-1565.8340565,8.219e-05,2]
[344513309,1733530243818,-478.67199929,8.219e-05,2]
[344513313,1733530245863,-546.006,8.219e-05,2]
[344513314,1733530245977,-1652.3132,8.219e-05,2]
[344513315,1733530246027,-14451.04548085,8.219e-05,2]
[344513316,1733530246082,-598.3840994,8.219e-05,2]
[344513321,1733530270035,510.74,0.00016658,30]
[344513324,1733531031457,485.2,0.00016658,30]
[344513326,1733531306106,1546385.96129179,0.0002,120]
[344513333,1733531431964,-150.0,7.269e-05,2]
[344513334,1733531431977,-250.0,7.287e-05,2]
[344513335,1733531431986,-250.0,7.292e-05,2]
[344513336,1733531431995,-187.46,7.313e-05,2]
[344513337,1733531432005,-166.67,7.535e-05,2]
[344513338,1733531432016,-500.0,7.726e-05,2]
[344513339,1733531432026,-592.927,7.81e-05,2]
[344513340,1733531432035,-495.92,7.98e-05,2]
[344513341,1733531432045,-509.43,7.995e-05,2]
[344513342,1733531432054,-43096.95310624,8e-05,2]
[344513343,1733531432084,-999.1096,8e-05,2]
[344513344,1733531432096,-999.621,8e-05,2]
[344513345,1733531432107,-1184.5499998,8e-05,2]
[344513346,1733531432118,-3719.76629396,8e-05,2]
[344513347,1733531432128,-495.37,8.018e-05,2]
[344513348,1733531432139,-493.98,8.052e-05,2]
[344513349,1733531432148,-490.9,8.104e-05,2]
[344513350,1733531432158,-1385.85830938,8.119e-05,2]
[344513351,1733531432186,-855.44323856,8.119e-05,2]
[344513352,1733531432197,-258.69845206,8.119e-05,2]
[344513353,1733531432207,-490.83006507,8.119e-05,2]
[344513358,1733531437922,-5.61993493,8.119e-05,2]
[344513359,1733531437932,-2677.1770672,8.212e-05,2]
[344513360,1733531437942,-622.85194856,8.212e-05,2]
[344513361,1733531437954,-2014.92909454,8.212e-05,2]
[344513362,1733531437963,-680.0393987,8.212e-05,2]
[344513363,1733531437973,-155.79037601,8.212e-05,2]
[344513364,1733531437984,-359.15841219,8.212e-05,2]
[344513365,1733531438102,-531.43571997,8.212e-05,2]
[344513366,1733531438163,-2436.1,8.212e-05,2]
[344513367,1733531438225,-4421.00501513,8.212e-05,2]
[344513368,1733531438235,-499.58,8.212e-05,2]
[344513369,1733531438244,-497.14,8.212e-05,2]
[344513370,1733531438254,-7048.97528843,8.212e-05,2]
[344513371,1733531438264,-500.0,8.218e-05,2]
[344513372,1733531438274,-346.95508147,8.218e-05,2]
[344513373,1733531438283,-500.0,8.218e-05,2]
[344513374,1733531438300,-150.0,8.218e-05,2]
[344513375,1733531438312,-150.0,8.218e-05,2]
[344513376,1733531438325,-150.0,8.218e-05,2]
[344513377,1733531438335,-150.0,8.218e-05,3]
[344513378,1733531438345,-150.0,8.218e-05,3]
[344513379,1733531438355,-159.99784764,8.218e-05,3]
[344513380,1733531438365,-1023.88349328,8.218e-05,2]
[344513381,1733531438375,-1023.88349329,8.218e-05,2]
[344513382,1733531438385,-785.94,8.218e-05,2]
[344513383,1733531438395,-2000.0,8.218e-05,2]
[344513384,1733531438405,-491.32,8.218e-05,2]
[344513385,1733531438415,-496.82,8.218e-05,2]
[344513386,1733531438424,-502.51,8.219e-05,2]
[344513387,1733531438434,-31323.40100288,8.219e-05,2]
[344513388,1733531438448,-4414.93242347,8.219e-05,2]
[344513389,1733531438463,-11710.53549523,8.219e-05,2]
[344513390,1733531438475,-1663.19033202,8.219e-05,2]
[344513394,1733531439907,-530.69259837,8.219e-05,2]
[344513395,1733531439920,-1000.1640584,8.219e-05,2]
[344513396,1733531439932,-1207.53999997,8.219e-05,2]
[344513397,1733531440025,-538.60986643,8.219e-05,2]
[344513398,1733531440037,-4751.73684704,8.219e-05,2]
[344513399,1733531440146,-24246.61039157,8.219e-05,2]
[344513400,1733531440157,-3781.901572,8.219e-05,2]
[344513412,1733531442965,-3000.9,8.219e-05,2]
[344513413,1733531442979,-4030.7510001,8.219e-05,2]
[344513414,1733531442991,-12992.32814022,8.219e-05,2]
[344513415,1733531443092,-32919.45590842,8.219e-05,2]
[344513416,1733531443203,-47777.83220213,8.219e-05,2]
[344513417,1733531443217,-900.99449484,8.219e-05,2]
[344513420,1733531445952,-250.0,8.06e-05,2]
[344513421,1733531445962,-5320.45453968,8.219e-05,2]
[344513422,1733531445974,-7561.86528616,8.219e-05,2]
[344513423,1733531445986,-2600.53010337,8.219e-05,2]
[344513424,1733531446072,-342499.84141202,8.219e-05,2]
[344513425,1733531446086,-379.71008372,8.219e-05,2]
[344513426,1733531446098,-1104.89183922,8.219e-05,2]
[344513427,1733531446143,-1397.80465773,8.219e-05,2]
[344513428,1733531446155,-730.27883011,8.219e-05,2]
[344513429,1733531446202,-6417.7600647,8.219e-05,2]
[344513432,1733531660552,460.94,0.00016658,30]
[344513434,1733532143643,5000.0,0.0001666,29]
[344513435,1733532223550,3000.0,0.0001666,29]
[344513436,1733532301796,437.89,0.00016658,30]
[344513437,1733532324262,20000.0,0.00016,29]
[344513463,1733532632127,-250.0,7.276e-05,2]
[344513464,1733532632141,-894.17446526,7.306e-05,2]
[344513465,1733532632154,-592.9,7.306e-05,2]
[344513466,1733532632167,-861.92516149,7.368e-05,2]
[344513467,1733532632179,-250.0,7.368e-05,2]
[344513468,1733532632192,-150.0,7.396e-05,2]
[344513469,1733532632204,-861.92516148,7.709e-05,2]
[344513470,1733532632219,-159.67,7.709e-05,2]
[344513471,1733532632233,-166.68,7.739e-05,2]
[344513472,1733532632246,-150.0,7.781e-05,2]
[344513473,1733532632259,-150.0,7.79e-05,2]
[344513474,1733532632272,-150.0,7.79e-05,2]
[344513475,1733532632284,-400.0,7.8e-05,2]
[344513476,1733532632296,-690.20685123,7.8e-05,2]
[344513477,1733532632329,-1273.79314877,7.8e-05,2]
[344513478,1733532632341,-1112.51260479,7.809e-05,2]
[344513479,1733532632411,-628.68750711,7.809e-05,2]
[344513480,1733532632467,-1387.23828445,7.809e-05,2]
[344513481,1733532632480,-1818.46160365,7.809e-05,2]
[344513482,1733532632490,-567.831,7.81e-05,2]
[344513483,1733532632499,-60.70739635,7.81e-05,2]
[344513548,1733532638164,-239.29260365,7.81e-05,2]
[344513549,1733532638174,-300.0,7.81e-05,2]
[344513550,1733532638470,-150.0,7.81e-05,2]
[344513551,1733532638482,-364.16,7.81e-05,2]
[344513552,1733532638491,-150.0,7.81e-05,2]
[344513553,1733532638501,-150.0,7.81e-05,2]
[344513554,1733532638510,-364.16,7.81e-05,2]
[344513555,1733532638520,-378.49,7.81e-05,2]
[344513556,1733532638529,-300.0,7.81e-05,2]
[344513557,1733532638539,-727.87,7.81e-05,2]
[344513558,1733532638549,-150.0,7.81e-05,2]
[344513559,1733532638558,-150.0,7.9e-05,2]
[344513561,1733532638568,-741.46,7.9e-05,2]
[344513563,1733532638580,-800.0,7.9e-05,2]
[344513565,1733532638589,-1200.0,8e-05,2]
[344513567,1733532638598,-1868.7255304,8.119e-05,2]
[344513575,1733532638663,-631.2744696,8.119e-05,2]
[344513577,1733532638672,-4559.1792,8.119e-05,2]
[344513579,1733532638681,-1850.80517977,8.194e-05,2]
[344513585,1733532638727,-2685.7882271,8.194e-05,2]
[344513587,1733532638737,-961.9724331,8.212e-05,2]
[344513589,1733532638746,-5652.0099612,8.212e-05,2]
[344513591,1733532638755,-952.5529682,8.212e-05,2]
[344513593,1733532638764,-1886.3521851,8.212e-05,2]
[344513595,1733532638774,-486.3154996,8.212e-05,2]
[344513597,1733532638783,-200.0,8.218e-05,3]
[344513598,1733532638792,-200.0,8.218e-05,3]
[344513600,1733532638802,-200.0,8.218e-05,3]
[344513602,1733532638811,-200.0,8.218e-05,3]
[344513604,1733532638825,-200.0,8.218e-05,3]
[344513606,1733532638839,-200.0,8.218e-05,3]
[344513608,1733532638848,-200.0,8.218e-05,3]
[344513610,1733532638859,-200.0,8.218e-05,3]
[344513611,1733532638868,-200.0,8.218e-05,3]
[344513612,1733532638877,-200.0,8.218e-05,2]
[344513613,1733532638886,-200.0,8.218e-05,2]
[344513614,1733532638895,-200.0,8.218e-05,2]
[344513615,1733532638906,-200.0,8.218e-05,2]
[344513616,1733532638917,-200.0,8.218e-05,2]
[344513617,1733532638926,-200.0,8.218e-05,2]
[344513618,1733532638935,-200.0,8.218e-05,2]
[344513619,1733532638944,-200.0,8.218e-05,2]
[344513620,1733532638953,-200.0,8.218e-05,2]
[344513621,1733532638962,-1327.5513,8.219e-05,2]
[344513622,1733532638971,-496.33,8.219e-05,2]
[344513623,1733532638981,-4273.92798944,8.219e-05,2]
[344513625,1733532640192,-401.67,8.219e-05,2]
[344513626,1733532640254,-4806.85510833,8.219e-05,2]
[344513627,1733532640371,-5598.50000872,8.219e-05,2]
[344513628,1733532640434,-6604.98822279,8.219e-05,2]
[344513629,1733532640445,-603.565,8.219e-05,2]
[344513634,1733532643115,-6802.1920377,8.219e-05,2]
[344513635,1733532643180,-1950.0,8.219e-05,2]
[344513636,1733532643219,-2418.64960091,8.219e-05,2]
[344513637,1733532643292,-537.35,8.219e-05,2]
[344513638,1733532643518,-70625.89200024,8.219e-05,2]
[344513639,1733532643530,-4571.59925769,8.219e-05,2]
[344513640,1733532643689,-6527.88587088,8.219e-05,2]
[344513641,1733532643705,-8895.03317603,8.219e-05,2]
[344513642,1733532643750,-1500.04768187,8.219e-05,2]
[344513643,1733532643761,-495.58079881,8.219e-05,2]
[344513644,1733532643777,-1319.07941141,8.219e-05,2]
[344513653,1733532646105,-318.21,8.219e-05,2]
[344513656,1733532646180,-255.26609992,8.219e-05,2]
[344513657,1733532646227,-1415.19485838,8.219e-05,2]
[344513658,1733532646307,-2365.8000004,8.219e-05,2]
[344513659,1733532646405,-1096.53,8.219e-05,2]
[344513660,1733532646416,-350910.33510212,8.219e-05,2]
[344513661,1733532646427,-611.65,8.219e-05,2]
[344513663,1733532677153,12638.72,9e-05,10]
[344513665,1733533034021,415.99,0.00016658,30]
[344513666,1733533143784,3966006.76767653,0.0002,120]
[344513690,1733533715798,395.19,0.00016658,30]
[344513716,1733533832303,-250.0,7.127e-05,2]
[344513717,1733533832314,-150.0,7.162e-05,2]
[344513718,1733533832323,-250.0,7.242e-05,2]
[344513719,1733533832333,-200.0,7.679e-05,2]
[344513720,1733533832342,-200.0,7.691e-05,2]
[344513721,1733533832351,-200.0,7.698e-05,2]
[344513722,1733533832361,-200.0,7.7e-05,2]
[344513723,1733533832370,-500.0,7.781e-05,2]
[344513724,1733533832379,-544.21,7.81e-05,2]
[344513725,1733533832389,-300.0,7.9e-05,2]
[344513726,1733533832400,-600.0,8e-05,2]
[344513727,1733533832410,-420.2446,8e-05,2]
[344513728,1733533832420,-256.49904066,8.048e-05,2]
[344513729,1733533832431,-509.72,8.048e-05,2]
[344513730,1733533832441,-491.64,8.049e-05,2]
[344513731,1733533832450,-508.06,8.051e-05,2]
[344513732,1733533832460,-508.94,8.053e-05,2]
[344513733,1733533832469,-494.05,8.057e-05,2]
[344513734,1733533832479,-490.49,8.061e-05,2]
[344513735,1733533832489,-497.62,8.066e-05,2]
[344513736,1733533832499,-508.32,8.072e-05,2]
[344513737,1733533832508,-300.0,8.081e-05,2]
[344513738,1733533832519,-498.24,8.081e-05,2]
[344513739,1733533832528,-768.15,8.082e-05,2]
[344513740,1733533832538,-768.15,8.082e-05,2]
[344513741,1733533832550,-768.15,8.082e-05,2]
[344513742,1733533832559,-768.15,8.082e-05,2]
[344513743,1733533832569,-501.61,8.092e-05,2]
[344513744,1733533832579,-509.62,8.107e-05,2]
[344513745,1733533832588,-506.52,8.119e-05,2]
[344513746,1733533832599,-500.36,8.119e-05,2]
[344513747,1733533832609,-2500.0,8.119e-05,2]
[344513748,1733533832619,-503.84,8.119e-05,2]
[344513749,1733533832629,-500.26,8.119e-05,2]
[344513750,1733533832638,-499.69,8.119e-05,2]
[344513751,1733533832648,-490.34,8.119e-05,2]
[344513752,1733533832658,-507.53,8.119e-05,2]
[344513753,1733533832668,-256.49904065,8.134e-05,2]
[344513754,1733533832677,-150.0,8.134e-05,2]
[344513756,1733533832687,-337.0,8.137e-05,2]
[344513757,1733533832696,-1534.6764008,8.212e-05,2]
[344513759,1733533832705,-2496.8773416,8.212e-05,2]
[344513761,1733533832714,-262.8960392,8.212e-05,2]
[344513763,1733533832723,-703.5200571,8.212e-05,2]
[344513765,1733533832733,-755.6017702,8.212e-05,2]
[344513767,1733533832743,-150.0,8.218e-05,2]
[344513769,1733533832752,-150.0,8.218e-05,2]
[344513771,1733533832761,-150.0,8.218e-05,2]
[344513773,1733533832771,-150.0,8.218e-05,2]
[344513775,1733533832780,-150.0,8.218e-05,2]
[344513777,1733533832789,-150.0,8.218e-05,2]
[344513779,1733533832800,-150.0,8.218e-05,3]
[344513781,1733533832809,-150.0,8.218e-05,3]
[344513783,1733533832818,-150.0,8.218e-05,3]
[344513785,1733533832828,-150.0,8.218e-05,3]
[344513787,1733533832837,-150.0,8.218e-05,3]
[344513789,1733533832847,-150.0,8.218e-05,3]
[344513791,1733533832857,-490.09,8.219e-05,2]
[344513793,1733533832866,-41975.74788374,8.219e-05,2]
[344513796,1733533832883,-38407.02650902,8.219e-05,2]
[344513798,1733533832896,-4174.75355292,8.219e-05,2]
[344513800,1733533832908,-1203.261308,8.219e-05,2]
[344513806,1733533832956,-3728.58736523,8.219e-05,2]
[344513812,1733533833003,-402.43849857,8.219e-05,2]
[344513821,1733533833077,-573.4428956,8.219e-05,2]
[344513845,1733533838324,-7907.43907258,8.219e-05,2]
[344513846,1733533838336,-1301.55006723,8.219e-05,2]
[344513847,1733533838390,-4717.36099216,8.219e-05,2]
[344513848,1733533838403,-1379.65049695,8.219e-05,2]
[344513849,1733533838460,-83301.59817619,8.219e-05,2]
[344513853,1733533840707,-445.96511529,8.119e-05,2]
[344513856,1733533840742,-477.05219997,8.119e-05,2]
[344513858,1733533840778,-1576.98268474,8.119e-05,2]
[344513859,1733533840787,-18792.40333988,8.219e-05,2]
[344513860,1733533840798,-360.535,8.219e-05,2]
[344513861,1733533840928,-5086.4965,8.219e-05,2]
[344513869,1733533843312,-4676.72249944,8.219e-05,2]
[344513870,1733533843326,-6959.98258749,8.219e-05,2]
[344513871,1733533843337,-1449.51210453,8.219e-05,2]
[344513872,1733533843370,-18236.52402204,8.219e-05,2]
[344513873,1733533843601,-2550.28271478,8.219e-05,2]
[344513874,1733533843721,-70322.99315,8.219e-05,2]
[344513878,1733533846312,-1821.43444022,8.219e-05,2]
[344513879,1733533846326,-2118.14892797,8.219e-05,2]
[344513880,1733533846345,-384.59837843,8.219e-05,2]
[344513881,1733533846357,-331.08846875,8.219e-05,2]
[344513882,1733533846444,-401.7982795,8.219e-05,2]
[344513883,1733533846456,-1241.07721,8.219e-05,2]
[344513884,1733533846468,-21444.03160942,8.219e-05,2]
[344513885,1733533846492,-470.66196315,8.219e-05,2]
[344513886,1733533846582,-2789.69539652,8.219e-05,2]
[344513887,1733533846594,-3950.92076763,8.219e-05,2]
[344513888,1733533846606,-5014.0,8.219e-05,2]
[344513890,1733534338649,375.43,0.00016658,30]
[344513894,1733534563766,-150.0,7.628e-05,2]
[344513895,1733534563790,-474.32,7.681e-05,2]
[344513896,1733534563813,-521.562,7.81e-05,2]
[344513897,1733534563836,-250.0,7.861e-05,2]
[344513898,1733534563858,-749.93,7.945e-05,2]
[344513899,1733534563881,-749.93,7.945e-05,2]
[344513900,1733534563904,-749.93,7.945e-05,2]
[344513901,1733534563927,-749.93,7.945e-05,2]
[344513902,1733534563948,-749.93,7.945e-05,2]
[344513903,1733534563972,-749.93,7.945e-05,2]
[344513904,1733534563998,-749.93,7.945e-05,2]
[344513905,1733534564021,-749.93,7.945e-05,2]
[344513906,1733534564044,-749.93,7.945e-05,2]
[344513907,1733534564066,-749.93,7.945e-05,2]
[344513908,1733534564088,-749.93,7.945e-05,2]
[344513909,1733534564110,-749.93,7.945e-05,2]
[344513910,1733534564133,-749.93,7.945e-05,2]
[344513911,1733534564156,-749.93,7.945e-05,2]
[344513912,1733534564178,-749.93,7.945e-05,2]
[344513913,1733534564199,-749.93,7.945e-05,2]
[344513914,1733534564220,-749.93,7.945e-05,2]
[344513915,1733534564246,-749.93,7.945e-05,2]
[344513916,1733534564268,-749.93,7.945e-05,2]
[344513917,1733534564289,-749.93,7.945e-05,2]
[344513918,1733534564311,-749.93,7.945e-05,2]
[344513919,1733534564332,-749.93,7.945e-05,2]
[344513920,1733534564353,-749.93,7.945e-05,2]
[344513921,1733534564375,-750.01,7.945e-05,2]
[344513922,1733534564396,-256.49904065,7.945e-05,2]
[344513923,1733534564418,-2500.0,8.119e-05,2]
[344513924,1733534564445,-501.16,8.119e-05,2]
[344513925,1733534564469,-495.19,8.119e-05,2]
[344513926,1733534564494,-1097.2638902,8.207e-05,2]
[344513927,1733534564517,-686.12451258,8.207e-05,2]
[344513928,1733534564540,-361.8357804,8.207e-05,2]
[344513929,1733534564563,-1308.363274,8.212e-05,2]
[344513930,1733534564585,-852.5924099,8.212e-05,2]
[344513931,1733534564609,-492.86,8.212e-05,2]
[344513932,1733534564630,-506.52,8.212e-05,2]
[344513933,1733534564653,-495.04,8.212e-05,2]
[344513934,1733534564675,-491.18,8.212e-05,2]
[344513935,1733534564696,-497.41,8.212e-05,2]
[344513936,1733534564719,-1967.53,8.218e-05,2]
[344513937,1733534564745,-163.665,8.218e-05,2]
[344513938,1733534564768,-2000.0,8.218e-05,2]
[344513939,1733534564792,-977783.09315818,8.219e-05,2]
[344513940,1733534564813,-12404.976768,8.219e-05,2]
[344513941,1733534564834,-500.0,8.219e-05,2]
[344513942,1733534564855,-945.21,8.219e-05,2]
[344513943,1733534564876,-500.0,8.219e-05,2]
[344513944,1733534564897,-5008.54908593,8.219e-05,2]
[344513945,1733534564918,-500.0,8.219e-05,2]
[344513946,1733534564939,-500.0,8.219e-05,2]
[344513947,1733534564960,-500.0,8.219e-05,2]
[344513948,1733534564985,-500.0,8.219e-05,2]
[344513949,1733534565006,-500.0,8.219e-05,2]
[344513950,1733534565027,-500.0,8.219e-05,2]
[344513951,1733534565048,-500.0,8.219e-05,2]
[344513952,1733534565069,-500.0,8.219e-05,2]
[344513953,1733534565090,-1163.74,8.219e-05,2]
[344513954,1733534565112,-500.0,8.219e-05,2]
[344513955,1733534565133,-853.57,8.219e-05,2]
[344513956,1733534565154,-628.77506352,8.219e-05,2]
[344513957,1733534565176,-1245.22,8.219e-05,2]
[344513958,1733534565198,-2197.04,8.219e-05,2]
[344513959,1733534565219,-500.0,8.219e-05,2]
[344513960,1733534565247,-1670.09,8.219e-05,2]
[344513961,1733534565268,-500.0,8.219e-05,2]
[344513962,1733534565289,-725.38,8.219e-05,2]
[344513963,1733534565310,-500.0,8.219e-05,2]
[344513964,1733534565331,-1704.98,8.219e-05,2]
[344513965,1733534565352,-500.0,8.219e-05,2]
[344513966,1733534565372,-500.0,8.219e-05,2]
[344513967,1733534565394,-500.0,8.219e-05,2]
[344513968,1733534565415,-500.0,8.219e-05,2]
[344513969,1733534565439,-678.59,8.219e-05,2]
[344513970,1733534565774,-500.0,8.219e-05,2]
[344513971,1733534565796,-500.0,8.219e-05,2]